[Event "FIDE Candidates Tournament 2022"]
[Site "Madrid"]
[Date "2022.06.29"]
[Round "10.1"]
[White "Rapport, Richard"]
[Black "Ding, Liren"]
[Result "0-1"]
[ECO "C77"]
[WhiteElo "2776"]
[BlackElo "2806"]
[Annotator "TA"]
[PlyCount "110"]
[EventDate "2022.06.17"]
[EventType "tourn"]
[EventCountry "ESP"]
[SourceTitle "playchess.com"]
[Source "ChessBase"]
[SourceQuality "1"]
[TimeControl "40/7200:20/3600:900+30"]

{[%evp 12,110,22,21,24,16,13,19,28,20,12,9,29,0,0,0,0,0,-10,-14,0,0,0,-10,-3,-20,-7,-24,-5,-13,0,0,0,0,0,0,0,0,0,0,0,0,0,-99,-92,-91,-78,-89,-77,-94,0,0,0,0,0,-54,-56,-68,-65,-91,-74,-47,-55,-51,0,0,0,0,0,0,0,-10,-17,-148,-148,-148,-148,-148,-148,-269,-270,-29963,-29966,-29965,-29967,-29967,-29968,-29968,-29968,-29966,-63,-29969,-29970,-29970,-29971,-29971,-29972,-29971,-29973,-29963,-11547]} 1. e4 {[%emt 0:00:03]} e5 {[%emt 0:00:09]} 2. Nf3 {[%emt 0:00:11]} Nc6 {[%emt 0:00:04]} 3. Bb5 {[%emt 0:01:33]} a6 {[%emt 0:00:17]} 4. Ba4 {[%emt 0:00:11]} Nf6 {[%emt 0:00:05]} 5. d3 {[%emt 0:00:48]} b5 {[%emt 0:00:35]} 6. Bb3 {[%emt 0:00:13]} Bc5 {[%emt 0:00:06]} 7. Bg5 {[%emt 0:00:26]} h6 {[%emt 0:01:02] C77: Ruy Lopez: 3...a6 4 Ba4 Nf6, unusual lines.} 8. Bh4 {[%emt 0:00:08]} d6 {[%emt 0:01:08] 8...Be7 is setting a new trend.} 9. c3 {[%emt 0:01:44]} Ba7 $5 {[%emt 0:02:52][%mdl 4] The position is equal. Leaves trodden paths.} 10. O-O {[%emt 0:05:26]} Na5 {[%emt 0:00:15]} 11. Bc2 {[%emt 0:01:17] [#]} c5 $146 {[%emt 0:00:16]} ({Predecessor:} 11... g5 12. Bg3 Nh5 13. a4 Nxg3 14. hxg3 Nc6 15. axb5 axb5 16. Na3 Ba6 17. Bb3 Ne7 {1-0 (29) Caruana,F (2800)-Burke,J (2554) Saint Louis 2021}) 12. Nbd2 {[%emt 0:16:37]} g5 {[%emt 0:00:42]} 13. Bg3 {[%emt 0:00:10]} Nh5 {[%emt 0:00:21]} 14. a3 {[%emt 0:08:50]} Rb8 {[%emt 0:16:48][%cal Ba8b8,Bb8b7,Bb7c7,Bc7c3][%mdl 32]} 15. Kh1 {[%emt 0:13:51]} Rb7 {[%emt 0:05:38]} 16. b4 {[%emt 0:02:04]} Nc6 {[%emt 0:00:18]} 17. Bb3 {[%emt 0:00:33]} Rc7 {[%emt 0:02:51]} 18. Bd5 {[%emt 0:12:26]} g4 {[%emt 0:09:03]} 19. Bh4 {[%emt 0:03:17]} Ne7 {[%emt 0:07:05]} 20. Ng1 {[%emt 0:04:57]} cxb4 {[%emt 0:02:32]} 21. axb4 {[%emt 0:01:47]} Rxc3 {[%emt 0:04:35]} 22. Ne2 {[%emt 0:02:09]} Rc7 {[%emt 0:00:49]} (22... Rxd3 $2 23. Bc6+ (23. Qc2 Rxd5 24. exd5 O-O $11) 23... Bd7 24. Bxd7+ (24. Rxa6 f6 $16) 24... Qxd7 25. Qc2 $18 (25. Rxa6 Qb7 $16)) 23. f4 {[%emt 0:09:15]} f6 {[%emt 0:03:05]} 24. fxe5 {[%emt 0:03:25]} dxe5 {[%emt 0:03:58]} (24... Nxd5 25. exd5 dxe5 26. Ne4 $14) 25. Ng3 $1 {[%emt 0:04:40]} Nxg3+ {[%emt 0:00:16]} (25... Nxd5 $2 26. Nxh5 Nf4 27. Nxf6+ Kf7 28. g3 Qxd3 29. Nxg4 $18) 26. hxg3 {[%emt 0:00:02]} Rf8 {[%emt 0:00:05]} (26... Nxd5 $2 27. exd5 O-O 28. Ne4 $18) 27. Rxf6 {[%emt 0:04:33]} (27. Rc1 $1 $11) 27... Rxf6 $17 {[%emt 0:00:19]} 28. Bxf6 {[%emt 0:00:03]} Qd6 {[%emt 0:00:12]} 29. Qf1 {[%emt 0:01:01][%cal Od5f7]} (29. Bxe7 Qxe7 30. Qe2 Bd4 $19) 29... Bd4 {[%emt 0:29:17]} (29... Nxd5 $6 30. exd5 Qxd5 31. Ne4 $11) 30. Bf7+ {[%emt 0:00:53]} Kd7 {[%emt 0:00:59]} ({Black should try} 30... Kd8 $1 $17 31. Rd1 Be6) 31. Rd1 $11 {[%emt 0:01:08]} Rc2 {[%emt 0:01:49]} 32. Bb3 $36 {[%emt 0:01:51][%mdl 2048] White is pushing.} Rc7 {[%emt 0:01:12]} 33. Nc4 {[%emt 0:05:51]} bxc4 $15 {[%emt 0:00:50]} 34. dxc4 {[%emt 0:00:10]} Rc6 {[%emt 0:03:51]} (34... Qxb4 $2 35. Bxe5 Kc6 36. Rxd4 $18 (36. Qf6+ Kb7 $16)) 35. Ba4 {[%emt 0:00:36]} Kc7 {[%emt 0:00:04]} (35... Qxb4 $6 36. Bxc6+ Nxc6 37. Bxe5 Nxe5 38. Rxd4+ Ke7 39. Rd5 $11) 36. Bxc6 {[%emt 0:00:31]} Nxc6 {[%emt 0:00:03]} 37. b5 {[%emt 0:00:10] Black must now prevent c5.} Nb4 {[%emt 0:01:34]} (37... Na5 $15) 38. c5 $11 {[%emt 0:00:42]} Qe6 {[%emt 0:00:02] Threatens to win with ...Nc2.} (38... Qxc5 $2 39. Rc1 Nc2 40. Qd3 $18) 39. Bh4 $1 {[%emt 0:04:11]} (39. b6+ $2 Kb7 40. Bd8 (40. Rc1 $2 Qf7 $19) 40... Qe8 $19) 39... Bxc5 {[%emt 0:11:10]} 40. Rc1 {[%emt 0:00:00]} Qd6 {[%emt 0:00:00]} 41. Qc4 {[%emt 0:27:05]} Nd3 {[%emt 0:00:19]} 42. Rc3 {[%emt 0:01:05]} (42. Be7 $1 $11 {was the only way to keep the balance.} Qxe7 43. Qxd3) 42... axb5 $17 {[%emt 0:04:05]} 43. Qxd3 {[%emt 0:01:56]} Qxd3 {[%emt 0:00:14] Chess con chili.} 44. Rxd3 {[%emt 0:00:02][%mdl 4096] Endgame And now Rc3 would win. KRB-KB} Bd4 {[%emt 0:00:17] Against Rc3+} 45. Bf6 {[%emt 0:04:59]} (45. Rb3 $17 Bd7 46. Be7) 45... Kb6 $1 $19 {[%emt 0:06:52] Strongly threatening ...b4.} 46. Rxd4 {[%emt 0:00:58]} (46. Be7 $19) 46... exd4 {[%emt 0:00:03]} 47. Bxd4+ {[%emt 0:00:12] KB-KB} Ka5 $1 {[%emt 0:00:01]} 48. Kg1 {[%emt 0:01:20]} b4 {[%emt 0:00:27][%cal Bb5b4,Bb4b3][%mdl 32]} 49. Kf2 {[%emt 0:00:20] [#]} Ka4 $1 {[%emt 0:00:01]} 50. Ke3 {[%emt 0:03:41] [#]} Kb3 $1 {[%emt 0:00:03] ( -> ...Kc2)} 51. Kf4 $2 {[%emt 0:12:20][%mdl 8192] Loses the game.} (51. Kd2 $15) 51... Kc2 {[%emt 0:00:08] Black mates.} 52. Ke5 {[%emt 0:00:06]} b3 {[%emt 0:00:30]} 53. Kd6 {[%emt 0:01:03]} Kd3 {[%emt 0:00:42]} 54. Ba1 {[%emt 0:02:01]} Kxe4 {[%emt 0:00:11]} ({Stronger than} 54... Kc2 55. e5 $11) 55. Kc5 {[%emt 0:00:09]} Kd3 {[%emt 0:00:13] Weighted Error Value: White=0.39/Black=0.05 (flawless)} 0-1

[Event "FIDE Candidates Tournament 2022"]
[Site "Madrid"]
[Date "2022.06.29"]
[Round "10.2"]
[White "Duda, Jan-Krzysztof"]
[Black "Caruana, Fabiano"]
[Result "1-0"]
[ECO "C54"]
[WhiteElo "2750"]
[BlackElo "2786"]
[Annotator "TA"]
[PlyCount "113"]
[EventDate "2022.06.17"]
[EventType "tourn"]
[EventCountry "ESP"]
[SourceTitle "playchess.com"]
[Source "ChessBase"]
[SourceQuality "1"]
[TimeControl "40/7200:20/3600:900+30"]

{[%evp 11,113,10,12,12,32,14,19,15,29,17,17,11,24,0,17,18,21,8,10,0,27,0,0,0,50,51,54,39,41,51,47,25,36,29,158,162,279,278,289,280,285,266,359,306,425,327,331,313,339,325,308,296,246,52,159,61,128,119,110,76,147,107,133,120,109,107,144,107,569,476,564,500,585,578,543,566,566,566,554,446,587,386,448,455,751,747,750,758,679,662,765,765,765,758,757,750,743,743,728,721,721,640,521,514]} 1. e4 {[%emt 0:00:03]} e5 {[%emt 0:00:04]} 2. Nf3 {[%emt 0:00:05]} Nc6 {[%emt 0:00:04]} 3. Bc4 {[%emt 0:00:06]} Bc5 {[%emt 0:00:08]} 4. c3 {[%emt 0:00:15]} Nf6 {[%emt 0:00:07]} 5. d3 {[%emt 0:00:05]} d6 {[%emt 0:00:38]} 6. O-O {[%emt 0:00:12]} a6 {[%emt 0:00:09]} 7. a4 {[%emt 0:00:08] C54: Giuoco Piano: 4 c3 Nf6, main lines with 5 d4 and 5 d3.} Ba7 {[%emt 0:00:14]} 8. Re1 {[%emt 0:00:21]} O-O {[%emt 0:00:52][%cal Ob7b5] The main line 8...0-0 scores better than 8...h6.} 9. h3 {[%emt 0:00:19] The position is equal.} Be6 {[%emt 0:01:41]} 10. Bxe6 {[%emt 0:01:07]} fxe6 {[%emt 0:00:14]} 11. b4 {[%emt 0:00:11][%cal Bb2b4,Bb4b5][%mdl 32]} Nh5 {[%emt 0:01:01] [#]} 12. Nbd2 $5 $146 {[%emt 0:05:36][%mdl 8] An interesting novelty.} ({Predecessor:} 12. Ra2 Qe8 13. Be3 Nf4 14. Bxa7 Rxa7 15. Kh2 b5 16. g3 Nh5 17. Kg2 Qg6 18. Re3 bxa4 {0-1 (48) Jones,G (2672)-Van Foreest,J (2714) chess24.com INT 2022}) 12... Nf4 {[%emt 0:05:35]} 13. Nf1 {[%emt 0:01:04]} Qf6 {[%emt 0:10:19][%cal Of4h3] Hoping for ...Nxh3+!} 14. Bxf4 {[%emt 0:03:33]} Qxf4 {[%emt 0:00:04]} 15. Qb3 {[%emt 0:05:00]} Rf6 {[%emt 0:08:59]} 16. b5 {[%emt 0:08:35]} Na5 {[%emt 0:10:07]} 17. Qa2 {[%emt 0:05:07]} g5 {[%emt 0:25:58]} (17... Raf8 $11) 18. N1h2 $1 $14 {[%emt 0:14:14]} Rg6 {[%emt 0:00:11]} 19. d4 $1 {[%emt 0:01:01]} h5 {[%emt 0:01:47]} 20. g3 {[%emt 0:11:06]} Qf6 {[%emt 0:00:37]} 21. Rad1 {[%emt 0:04:49]} Rg7 {[%emt 0:04:32]} 22. Kh1 {[%emt 0:03:08] aiming for dxe5.} Rf8 {[%emt 0:14:52]} (22... g4 $1 $11 23. dxe5 dxe5 24. hxg4 hxg4) 23. dxe5 $16 {[%emt 0:13:21]} dxe5 {[%emt 0:00:04]} (23... Qe7 $142 24. Rf1 Bc5) 24. h4 $1 $18 {[%emt 0:00:08]} gxh4 {[%emt 0:02:12]} 25. gxh4 {[%emt 0:00:40]} Bc5 {[%emt 0:10:42]} 26. Rg1 {[%emt 0:05:01]} Bd6 {[%emt 0:06:12]} 27. Ng5 {[%emt 0:02:23]} Kh8 {[%emt 0:02:50]} 28. Qe2 {[%emt 0:02:49]} Qg6 {[%emt 0:00:03]} 29. Rd3 {[%emt 0:07:39]} (29. bxa6 bxa6 30. Qxa6 Nb3 $18) 29... axb5 {[%emt 0:03:18]} 30. Rdg3 {[%emt 0:01:03][%cal Og5e6]} Qe8 {[%emt 0:00:23]} (30... bxa4 $2 31. Nxe6 $1 $18 {[%mdl 512]}) 31. axb5 {[%emt 0:01:40]} Rf6 {[%emt 0:00:19]} 32. Qf1 $2 {[%emt 0:06:30]} (32. Qd3 $18) 32... b6 {[%emt 0:00:40]} ({Better is} 32... Nb3 $1 $14) 33. Qg2 {[%emt 0:00:07]} (33. Qd3 $16) 33... Qf8 {[%emt 0:01:44]} (33... Qxb5 34. Nxe6 $1 {[%mdl 512]}) (33... Qg8 $1 $14) 34. Qh3 $16 {[%emt 0:00:10]} Qg8 {[%emt 0:00:34]} 35. R1g2 {[%emt 0:02:15][%cal Og5h7]} Nb7 {[%emt 0:00:22] [#]} (35... Be7 $142) 36. Nh7 $1 $36 {[%emt 0:00:20][%mdl 2560] White is really pushing. Pair of Knights!} Rfg6 {[%emt 0:00:52]} (36... Qxh7 $2 37. Rxg7 Qxg7 38. Rxg7 Kxg7 39. Qg3+ Rg6 40. Qf3 $18) 37. Rxg6 {[%emt 0:04:17]} (37. Nf6 $6 Rxg3 38. Rxg3 Qf7 39. Rxg7 Kxg7 40. Qg2+ Kf8 $11) 37... Rxg6 {[%emt 0:00:02] [#]} 38. Ng5 $1 {[%emt 0:00:24][%cal Bh7g5,Bg5f3,Bf3e5,Be5d3][%mdl 32] White is more active.} ({Much weaker is} 38. Nf6 $6 Qf7 39. Rxg6 Qxg6 40. Qxe6 Kg7 41. Ne8+ Kh6 $11) 38... Rf6 {[%emt 0:00:16] Against Qf3} 39. f4 {[%emt 0:01:29] Threatens to win with fxe5.} Nc5 $2 {[%emt 0:00:24][%mdl 8192] [#] A mistake that costs the game.} (39... exf4 $2 40. e5 Bxe5 41. Qf3 $18) (39... Qe8 $16) 40. fxe5 $1 $18 {[%emt 0:00:00]} Bxe5 {[%emt 0:00:00]} 41. Ngf3 {[%emt 0:02:54]} Qa8 {[%emt 0:10:58][%cal Oc5e4]} 42. Nxe5 {[%emt 0:04:30]} Nxe4 {[%emt 0:01:54] ( -> ...Nf2+)} 43. Nhf3 {[%emt 0:03:10]} Qa1+ {[%emt 0:00:19]} 44. Kh2 {[%emt 0:02:40]} Qc1 {[%emt 0:06:46]} 45. Nd3 {[%emt 0:13:31] Inhibits Qf4+.} Qxc3 {[%emt 0:05:41] [#]} 46. Ra2 $1 {[%emt 0:02:03]} Nf2 {[%emt 0:05:15]} (46... Qxd3 $2 47. Ra8+ Kg7 48. Qg2+ Ng5 49. Qxg5+ Qg6 50. Nd4 $18) (46... Rf5 47. Ra8+) 47. Rxf2 {[%emt 0:03:57][%cal Of2g2] White is clearly winning.} ({Not} 47. Ra8+ Kg7 48. Nxf2 Qxf3 49. Qg3+ Qxg3+ 50. Kxg3 Rf5 $16) 47... Qxd3 {[%emt 0:00:06]} 48. Qg3 {[%emt 0:00:07][%cal Of2g2] White threatens Rg2! and mate.} Qd6 {[%emt 0:01:48]} 49. Qxd6 {[%emt 0:01:26]} cxd6 {[%emt 0:00:04][%mdl 4096] Endgame KRN-KR} 50. Kg3 {[%emt 0:00:07]} Rf5 {[%emt 0:01:38]} 51. Rd2 {[%emt 0:00:48]} Rxb5 {[%emt 0:01:43]} 52. Rxd6 {[%emt 0:00:20]} Kg7 {[%emt 0:00:05]} 53. Rxe6 {[%emt 0:00:35]} Rb4 {[%emt 0:00:26]} 54. Re5 {[%emt 0:00:30]} Kh6 {[%emt 0:00:17]} 55. Rd5 {[%emt 0:00:09]} Rb1 {[%emt 0:01:01]} 56. Nd4 {[%emt 0:00:34]} Rg1+ {[%emt 0:00:25]} 57. Kf4 {[%emt 0:00:06] Weighted Error Value: White=0.21 (precise) /Black=0.49} 1-0

[Event "FIDE Candidates Tournament 2022"]
[Site "Madrid"]
[Date "2022.06.29"]
[Round "10.3"]
[White "Nepomniachtchi, Ian"]
[Black "Radjabov, Teimour"]
[Result "1/2-1/2"]
[ECO "E05"]
[WhiteElo "2773"]
[BlackElo "2753"]
[Annotator "TA"]
[PlyCount "74"]
[EventDate "2022.06.17"]
[EventType "tourn"]
[EventCountry "ESP"]
[SourceTitle "playchess.com"]
[Source "ChessBase"]
[SourceQuality "1"]
[TimeControl "40/7200:20/3600:900+30"]

{[%evp 13,74,17,9,16,27,27,27,28,25,16,32,29,22,22,27,30,18,27,26,12,33,9,24,0,54,52,52,49,49,49,49,45,44,55,105,16,17,0,0,0,0,0,0,0,0,0,0,0,0,0,0,0,0,0,0,0,0,0,0,0,0,0,0]} 1. d4 {[%emt 0:00:05]} Nf6 {[%emt 0:00:08]} 2. c4 {[%emt 0:00:06]} e6 {[%emt 0:00:05]} 3. Nf3 {[%emt 0:00:05]} d5 {[%emt 0:00:08]} 4. g3 {[%emt 0:00:10]} Be7 {[%emt 0:00:08]} 5. Bg2 {[%emt 0:00:07]} O-O {[%emt 0:00:06]} 6. O-O {[%emt 0:00:13]} dxc4 {[%emt 0:00:13]} 7. Qc2 {[%emt 0:00:50]} b5 {[%emt 0:01:43]} 8. a4 {[%emt 0:00:17] E05: Open Catalan: 5 Nf3 Be7.} Bb7 {[%emt 0:00:12]} 9. axb5 {[%emt 0:00:26]} a6 {[%emt 0:00:06]} 10. Nc3 {[%emt 0:00:16] Inhibits Be4. White has an edge.} axb5 {[%emt 0:00:40]} 11. Rxa8 {[%emt 0:02:45]} Bxa8 {[%emt 0:00:39]} 12. Nxb5 {[%emt 0:00:11]} Bd5 {[%emt 0:01:09]} 13. Bf4 {[%emt 0:00:27]} c5 {[%emt 0:01:55]} 14. dxc5 {[%emt 0:00:19]} Qa5 {[%emt 0:00:14]} 15. Nc3 {[%emt 0:00:06][%cal Bb5c3,Bc3d1,Bd1e3][%mdl 32]} Qxc5 {[%emt 0:00:35] [#]} 16. Be3 $146 {[%emt 0:00:21]} ({Predecessor:} 16. e4 Bc6 17. Be3 Qa5 18. Nd4 Rc8 19. h3 Be8 20. f4 Na6 21. e5 Nb4 22. Qd2 {0-1 (40) Dubov,D (2702)-Nakamura,H (2766) Chess.com INT 2022}) 16... Qa5 {[%emt 0:09:53]} 17. Bd2 {[%emt 0:01:19]} Ba8 {[%emt 0:07:22]} 18. Nd1 {[%emt 0:04:03]} Qc5 {[%emt 0:06:14]} (18... Qa6 $11) 19. Ne3 $14 {[%emt 0:05:14]} Rc8 {[%emt 0:01:15]} 20. Rc1 {[%emt 0:02:06]} Bd5 {[%emt 0:06:31]} 21. Nxd5 {[%emt 0:12:33]} Nxd5 {[%emt 0:04:20]} 22. Ne5 {[%emt 0:04:39][%cal Rc2c4]} Nb6 $1 {[%emt 0:07:20]} 23. Qe4 {[%emt 0:02:23] Be3 is the strong threat.} Bf6 {[%emt 0:07:56] [#]} (23... Bd6 $14 24. Nf3 N8d7) 24. Bc3 {[%emt 0:04:06] 0x0.00207c4ebf22dp-1022s more active pieces.} (24. Nxc4 $1 $16 {[%mdl 512]} Nxc4 25. b3) 24... N8d7 {[%emt 0:06:56] The position is equal.} 25. Bd4 {[%emt 0:08:52] This bishop pair is nice.} Qd6 {[%emt 0:01:20][%cal Rf6e5]} 26. Nxd7 {[%emt 0:02:35]} Bxd4 {[%emt 0:06:29]} 27. Nxb6 {[%emt 0:04:12]} Qxb6 {[%emt 0:02:50]} 28. e3 $1 {[%emt 0:00:05]} Bxb2 {[%emt 0:00:19]} (28... Qxb2 $2 29. Rb1 Qa2 30. exd4 $18) 29. Rxc4 {[%emt 0:00:10]} Qa6 {[%emt 0:06:05]} 30. Rxc8+ {[%emt 0:02:02]} Qxc8 {[%emt 0:00:03]} 31. Qb7 {[%emt 0:00:10]} Qxb7 {[%emt 0:00:06]} 32. Bxb7 $11 {[%emt 0:00:04][%mdl 4096] Endgame KB-KB} g6 {[%emt 0:00:06]} 33. Kg2 {[%emt 0:00:03]} Kg7 {[%emt 0:00:03]} 34. Ba8 {[%emt 0:00:04]} Ba1 {[%emt 0:00:03]} 35. Bb7 {[%emt 0:00:03]} Bb2 {[%emt 0:00:04]} 36. Ba8 {[%emt 0:00:03]} Ba1 {[%emt 0:00:04]} 37. Bb7 {[%emt 0:00:05]} Bb2 {[%emt 0:36:40] Weighted Error Value: White=0.08 (flawless) /Black=0.07 (flawless)} 1/2-1/2

[Event "FIDE Candidates Tournament 2022"]
[Site "Madrid"]
[Date "2022.06.29"]
[Round "10.4"]
[White "Nakamura, Hikaru"]
[Black "Firouzja, Alireza"]
[Result "1-0"]
[ECO "B90"]
[WhiteElo "2760"]
[BlackElo "2804"]
[Annotator "TA"]
[PlyCount "63"]
[EventDate "2022.06.17"]
[EventType "tourn"]
[EventCountry "ESP"]
[SourceTitle "playchess.com"]
[Source "ChessBase"]
[SourceQuality "1"]
[TimeControl "40/7200:20/3600:900+30"]

{[%evp 12,63,21,10,13,4,17,0,0,0,28,16,61,56,60,52,74,65,64,29,37,22,80,39,61,67,78,96,106,100,139,9,151,133,187,219,214,197,186,133,235,214,501,486,660,633,29991,29992,29992,29993,29993,29994,29994,29995]} 1. e4 {[%emt 0:00:04]} c5 {[%emt 0:00:04]} 2. Nf3 {[%emt 0:00:10]} d6 {[%emt 0:00:23]} 3. d4 {[%emt 0:00:21]} cxd4 {[%emt 0:00:08]} 4. Nxd4 {[%emt 0:00:02]} Nf6 {[%emt 0:00:10]} 5. Nc3 {[%emt 0:00:07]} a6 {[%emt 0:00:05]} 6. Be3 {[%emt 0:00:20]} e5 {[%emt 0:00:23]} 7. Nf3 {[%emt 0:00:06]} Nc6 {[%emt 0:09:25] B90: Sicilian Najdorf: Unusual White 6th moves, 6 Be3 Ng4 and 6 Be3 e5.} 8. Bc4 {[%emt 0:11:06] Hoping for Ng5.} Be6 {[%emt 0:00:26]} 9. Nd5 {[%emt 0:08:10] Black must now prevent Bb6.} Rc8 {[%emt 0:16:32] The position is equal.} (9... Nxe4 $2 10. Bb6 Bxd5 11. Bxd8 Bxc4 12. Bb6 $16) 10. Nxf6+ {[%emt 0:30:52] [#]} gxf6 $146 {[%emt 0:05:22]} ({Predecessor:} 10... Qxf6 11. Bxe6 fxe6 12. O-O Qg6 13. Nd2 Be7 14. c4 O-O 15. Rc1 Rc7 16. f3 Bg5 17. Bxg5 Qxg5 {½-½ (39) Adams,M (2723)-Bologan,V (2732) Konya 2012}) 11. Bb3 {[%emt 0:07:51]} Ne7 {[%emt 0:19:27]} 12. O-O {[%emt 0:06:48][%cal Bh1f1,Bf1d1,Bd1d5][%mdl 32]} Bxb3 {[%emt 0:15:19]} 13. axb3 {[%emt 0:00:16]} d5 {[%emt 0:00:36] Against c4} 14. exd5 {[%emt 0:00:10]} Qxd5 {[%emt 0:04:30]} 15. Qe2 {[%emt 0:01:42]} Nf5 {[%emt 0:07:15]} 16. Rfd1 {[%emt 0:01:40]} Qc6 {[%emt 0:06:48]} (16... Qe6 $11) 17. c4 {[%emt 0:00:37]} Bg7 {[%emt 0:05:34]} 18. Rd5 {[%emt 0:01:04] White is more active.} O-O {[%emt 0:00:21]} 19. Rad1 {[%emt 0:00:18]} Rfe8 {[%emt 0:01:05]} 20. h3 {[%emt 0:04:49]} b5 {[%emt 0:06:01][%cal Rb5c4]} 21. c5 {[%emt 0:03:17]} (21. cxb5 $6 axb5 22. Qxb5 Nxe3 23. Qxc6 (23. fxe3 Bh6 $11) 23... Rxc6 $14) ({White should try} 21. Bc5 $1 $16) 21... Bf8 {[%emt 0:00:52]} ({Much less strong is} 21... Nd4 22. Nxd4 $1 exd4 23. R5xd4 $16 (23. R1xd4 f5 $16)) (21... a5 $1 $11 {keeps the balance.}) 22. b4 $16 {[%emt 0:07:50]} Nd4 {[%emt 0:01:00] [#]} (22... Qa8 $16 {is a better defense.}) 23. Nxd4 $1 $18 {[%emt 0:03:55]} Qxd5 {[%emt 0:00:04]} 24. Nf5 {[%emt 0:03:19]} Qe4 {[%emt 0:07:27]} 25. Qh5 {[%emt 0:00:28][%mdl 1024] aiming for Rd7. White has strong compensation.} Red8 {[%emt 0:00:30] Against Rd7} (25... Rcd8 $16 {was necessary.} 26. Ra1 Qc6) 26. Ra1 {[%emt 0:03:33] Really sharp!} Rc6 {[%emt 0:01:44]} (26... Qxb4 $2 27. Rxa6 Rd7 28. Rxf6 $18) (26... Ra8 {might work better.} 27. Bh6 Kh8) 27. Bh6 {[%emt 0:02:52]} Kh8 {[%emt 0:04:13] [#]} (27... Qxb4 28. Bxf8 Qf4 29. Nh6+ Kh8 30. Nxf7+ Kg8 31. Nxd8 Qg5 32. Qf7+ Kh8 33. Ra3) 28. Ra3 $1 {[%emt 0:00:26] Bxf8 is the strong threat.} Qxb4 {[%emt 0:03:30]} 29. Bxf8 {[%emt 0:01:39] White mates.} Rxf8 {[%emt 0:00:01]} 30. Qh6 {[%emt 0:00:23][%cal Rh6f8]} Rg8 {[%emt 0:00:11]} 31. Rg3 {[%emt 0:00:06]} Rxg3 {[%emt 0:00:32]} 32. fxg3 {[%emt 0:00:04] Weighted Error Value: White=0.11 (very precise) /Black=0.76} 1-0